[Event "Titled Tuesday Blitz April 18 Late 2023"]
[White "D`Arruda, Ricardo D."]
[Black "Djokic, Mihailo"]
[WhiteFideId "100692"]
[BlackFideId "976440"]
[WhiteElo "2487"]
[BlackElo "2294"]
[Result "0-1"]
[Round "08"]
[TimeControl "180+2"]
[Date "2023.04.18"]
[WhiteClock "0:00:38"]
[BlackClock "0:01:14"]

1. d4 {[%clk 0:02:24]}  Nf6 {[%clk 0:02:59]} 2. Nf3 {[%clk 0:02:23]}  g6 {[%clk 0:03:00]} 3. g3 {[%clk 0:02:24]}  Bg7 {[%clk 0:03:00]} 4. Bg2 {[%clk 0:02:25]}  O-O {[%clk 0:03:01]} 5. O-O {[%clk 0:02:25]}  d6 {[%clk 0:03:02]} 6. Nc3 {[%clk 0:02:25]}  Re8 {[%clk 0:03:01]} 7. e4 {[%clk 0:02:25]}  c6 {[%clk 0:03:00]} 8. Bg5 {[%clk 0:02:24]}  Qc7 {[%clk 0:03:00]} 9. Qd2 {[%clk 0:02:24]}  b5 {[%clk 0:02:59]} 10. a3 {[%clk 0:02:23]}  Nbd7 {[%clk 0:02:59]} 11. e5 {[%clk 0:02:20]}  dxe5 {[%clk 0:02:15]} 12. dxe5 {[%clk 0:02:21]}  Ng4 {[%clk 0:02:15]} 13. e6 {[%clk 0:02:21]}  fxe6 {[%clk 0:02:14]} 14. Nd4 {[%clk 0:02:16]}  Nde5 {[%clk 0:02:11]} 15. Ndxb5 {[%clk 0:01:57]}  cxb5 {[%clk 0:02:05]} 16. Bxa8 {[%clk 0:01:54]}  Bb7 {[%clk 0:02:06]} 17. Bxb7 {[%clk 0:01:50]}  Qxb7 {[%clk 0:02:06]} 18. f3 {[%clk 0:01:45]}  Nxf3+ {[%clk 0:02:06]} 19. Rxf3 {[%clk 0:01:45]}  Qxf3 {[%clk 0:02:06]} 20. Nxb5 {[%clk 0:01:36]}  h6 {[%clk 0:01:45]} 21. Rf1 {[%clk 0:01:35]}  Qc6 {[%clk 0:01:33]} 22. c4 {[%clk 0:01:01]}  Qc5+ {[%clk 0:01:22]} 23. Kh1 {[%clk 0:00:56]}  hxg5 {[%clk 0:01:23]} 24. Qd7 {[%clk 0:00:53]}  Qc8 {[%clk 0:01:18]} 25. Qxc8 {[%clk 0:00:37]}  Rxc8 {[%clk 0:01:17]} 26. b3 {[%clk 0:00:38]}  a6 {[%clk 0:01:14]} 0-1


[Site "https://www.chess.com"]

[Event "Titled Tuesday Blitz April 18 Late 2023"]
[White "Sargsyan, Shant"]
[Black "Sprenar, Petr"]
[WhiteFideId "13306766"]
[BlackFideId "397164"]
[WhiteElo "2628"]
[BlackElo "2182"]
[Result "1-0"]
[Round "08"]
[TimeControl "180+2"]
[Date "2023.04.18"]
[WhiteClock "0:01:29"]
[BlackClock "0:00:10"]

1. b4 {[%clk 0:03:00]}  e5 {[%clk 0:02:59]} 2. Bb2 {[%clk 0:03:01]}  Bxb4 {[%clk 0:02:59]} 3. Bxe5 {[%clk 0:03:01]}  Nf6 {[%clk 0:02:59]} 4. c3 {[%clk 0:03:02]}  Be7 {[%clk 0:02:55]} 5. Nf3 {[%clk 0:03:03]}  O-O {[%clk 0:02:55]} 6. e3 {[%clk 0:03:03]}  d5 {[%clk 0:02:53]} 7. d4 {[%clk 0:03:03]}  c5 {[%clk 0:02:53]} 8. Nbd2 {[%clk 0:03:03]}  Nc6 {[%clk 0:02:54]} 9. Bg3 {[%clk 0:03:02]}  Bf5 {[%clk 0:02:54]} 10. Be2 {[%clk 0:03:01]}  Rc8 {[%clk 0:02:47]} 11. O-O {[%clk 0:03:01]}  Ne4 {[%clk 0:02:45]} 12. Nxe4 {[%clk 0:03:01]}  Bxe4 {[%clk 0:02:45]} 13. Nd2 {[%clk 0:03:01]}  Bg6 {[%clk 0:02:45]} 14. a4 {[%clk 0:03:02]}  Na5 {[%clk 0:02:42]} 15. Nb3 {[%clk 0:03:00]}  cxd4 {[%clk 0:02:19]} 16. Nxa5 {[%clk 0:02:58]}  d3 {[%clk 0:02:11]} 17. Bxd3 {[%clk 0:02:53]}  Qxa5 {[%clk 0:02:10]} 18. Bxg6 {[%clk 0:02:54]}  hxg6 {[%clk 0:02:10]} 19. Rb1 {[%clk 0:02:55]}  b6 {[%clk 0:02:08]} 20. Be5 {[%clk 0:02:53]}  Bf6 {[%clk 0:02:07]} 21. Rb5 {[%clk 0:02:52]}  Qa6 {[%clk 0:02:02]} 22. Bd4 {[%clk 0:02:46]}  Bxd4 {[%clk 0:01:58]} 23. cxd4 {[%clk 0:02:46]}  Rfd8 {[%clk 0:01:55]} 24. Qb3 {[%clk 0:02:34]}  Rc4 {[%clk 0:01:55]} 25. Ra1 {[%clk 0:02:34]}  Qb7 {[%clk 0:01:47]} 26. g3 {[%clk 0:02:27]}  Qc6 {[%clk 0:01:36]} 27. a5 {[%clk 0:02:25]}  Rc3 {[%clk 0:01:34]} 28. Qb1 {[%clk 0:02:20]}  Rb8 {[%clk 0:01:02]} 29. axb6 {[%clk 0:02:16]}  Rxb6 {[%clk 0:00:57]} 30. Rxb6 {[%clk 0:02:16]}  axb6 {[%clk 0:00:57]} 31. Kg2 {[%clk 0:02:15]}  Rc2 {[%clk 0:00:51]} 32. Qb3 {[%clk 0:02:04]}  b5 {[%clk 0:00:46]} 33. Ra5 {[%clk 0:01:36]}  Rd2 {[%clk 0:00:20]} 34. Qxb5 {[%clk 0:01:30]}  Qf6 {[%clk 0:00:12]} 35. Qb8+ {[%clk 0:01:29]}  Kh7 {[%clk 0:00:13]} 36. Qf4 {[%clk 0:01:30]}  Qe6 {[%clk 0:00:10]} 37. Qh4+ {[%clk 0:01:29]} 1-0


[Site "https://www.chess.com"]

[Event "Titled Tuesday Blitz April 18 Late 2023"]
[White "MKlose11"]
[Black "Grigoriants, Sergey"]
[BlackFideId "4130804"]
[WhiteElo "2580"]
[BlackElo "2502"]
[Result "1-0"]
[Round "08"]
[TimeControl "180+2"]
[Date "2023.04.18"]
[WhiteClock "0:00:05"]
[BlackClock "0:00:02"]

1. e4 {[%clk 0:02:49]}  c6 {[%clk 0:02:59]} 2. Nc3 {[%clk 0:02:44]}  d5 {[%clk 0:03:00]} 3. g3 {[%clk 0:02:45]}  d4 {[%clk 0:02:55]} 4. Nce2 {[%clk 0:02:41]}  e5 {[%clk 0:02:53]} 5. d3 {[%clk 0:02:42]}  c5 {[%clk 0:02:54]} 6. Bg2 {[%clk 0:02:42]}  Nc6 {[%clk 0:02:54]} 7. f4 {[%clk 0:02:42]}  h5 {[%clk 0:02:32]} 8. h3 {[%clk 0:02:40]}  Bd6 {[%clk 0:02:26]} 9. Nf3 {[%clk 0:02:38]}  Nge7 {[%clk 0:02:20]} 10. O-O {[%clk 0:02:39]}  f6 {[%clk 0:02:04]} 11. c3 {[%clk 0:02:34]}  Be6 {[%clk 0:02:03]} 12. cxd4 {[%clk 0:02:34]}  cxd4 {[%clk 0:02:02]} 13. fxe5 {[%clk 0:02:25]}  fxe5 {[%clk 0:02:00]} 14. Ng5 {[%clk 0:02:19]}  Bg8 {[%clk 0:02:00]} 15. h4 {[%clk 0:02:19]}  Qb6 {[%clk 0:01:32]} 16. Bh3 {[%clk 0:02:15]}  Nd8 {[%clk 0:01:26]} 17. a3 {[%clk 0:01:58]}  Bb3 {[%clk 0:01:20]} 18. Qe1 {[%clk 0:01:54]}  a5 {[%clk 0:01:06]} 19. Bd2 {[%clk 0:01:52]}  Bc2 {[%clk 0:00:56]} 20. Ne6 {[%clk 0:01:36]}  Nxe6 {[%clk 0:00:52]} 21. Bxe6 {[%clk 0:01:37]}  Bxd3 {[%clk 0:00:43]} 22. Kh2 {[%clk 0:01:16]}  Bc7 {[%clk 0:00:30]} 23. Bf7+ {[%clk 0:00:30]}  Kd7 {[%clk 0:00:30]} 24. Bg5 {[%clk 0:00:24]}  Bd6 {[%clk 0:00:21]} 25. Qd2 {[%clk 0:00:20]}  Ba6 {[%clk 0:00:17]} 26. Rf2 {[%clk 0:00:15]}  Rad8 {[%clk 0:00:12]} 27. Ng1 {[%clk 0:00:15]}  Kc8 {[%clk 0:00:12]} 28. Nf3 {[%clk 0:00:14]}  Kb8 {[%clk 0:00:12]} 29. Bxe7 {[%clk 0:00:13]}  Bxe7 {[%clk 0:00:11]} 30. Nxe5 {[%clk 0:00:14]}  d3 {[%clk 0:00:11]} 31. Bd5 {[%clk 0:00:13]}  Rhf8 {[%clk 0:00:07]} 32. Raf1 {[%clk 0:00:10]}  Rxf2+ {[%clk 0:00:06]} 33. Rxf2 {[%clk 0:00:11]}  Bc5 {[%clk 0:00:05]} 34. Rf3 {[%clk 0:00:10]}  Bd4 {[%clk 0:00:03]} 35. Nxd3 {[%clk 0:00:10]}  Rc8 {[%clk 0:00:02]} 36. b4 {[%clk 0:00:05]} 1-0


[Site "https://www.chess.com"]

[Event "Titled Tuesday Blitz April 18 Late 2023"]
[White "Perske, Thore"]
[Black "Kushko, Dmitriy"]
[WhiteFideId "12902195"]
[BlackFideId "14162261"]
[WhiteElo "2336"]
[BlackElo "2230"]
[Result "0-1"]
[Round "08"]
[TimeControl "180+2"]
[Date "2023.04.18"]
[WhiteClock "0:00:02"]
[BlackClock "0:00:09"]

1. e4 {[%clk 0:02:58]}  g6 {[%clk 0:03:00]} 2. Nf3 {[%clk 0:02:57]}  Bg7 {[%clk 0:03:00]} 3. g3 {[%clk 0:02:57]}  c5 {[%clk 0:02:57]} 4. Bg2 {[%clk 0:02:58]}  Nc6 {[%clk 0:02:58]} 5. O-O {[%clk 0:02:58]}  d6 {[%clk 0:02:57]} 6. d3 {[%clk 0:02:59]}  e5 {[%clk 0:02:57]} 7. Nc3 {[%clk 0:02:59]}  Nge7 {[%clk 0:02:57]} 8. a4 {[%clk 0:03:00]}  h6 {[%clk 0:02:56]} 9. Nd2 {[%clk 0:03:00]}  Be6 {[%clk 0:02:52]} 10. Nc4 {[%clk 0:03:00]}  d5 {[%clk 0:02:51]} 11. exd5 {[%clk 0:03:00]}  Nxd5 {[%clk 0:02:52]} 12. Ne4 {[%clk 0:03:00]}  b6 {[%clk 0:02:37]} 13. Ned6+ {[%clk 0:02:48]}  Kf8 {[%clk 0:02:37]} 14. c3 {[%clk 0:02:28]}  Kg8 {[%clk 0:02:36]} 15. a5 {[%clk 0:02:09]}  Rb8 {[%clk 0:02:21]} 16. axb6 {[%clk 0:02:07]}  axb6 {[%clk 0:02:22]} 17. Qa4 {[%clk 0:01:38]}  Qd7 {[%clk 0:02:17]} 18. h4 {[%clk 0:01:24]}  Kh7 {[%clk 0:02:16]} 19. h5 {[%clk 0:01:24]}  b5 {[%clk 0:01:45]} 20. Nxb5 {[%clk 0:01:20]}  Ra8 {[%clk 0:01:45]} 21. Qxa8 {[%clk 0:01:06]}  Rxa8 {[%clk 0:01:46]} 22. Rxa8 {[%clk 0:01:06]}  Qb7 {[%clk 0:01:45]} 23. hxg6+ {[%clk 0:00:54]}  fxg6 {[%clk 0:01:46]} 24. Re8 {[%clk 0:00:47]}  Bd7 {[%clk 0:01:35]} 25. Nbd6 {[%clk 0:00:41]}  Qa6 {[%clk 0:01:23]} 26. Bxd5 {[%clk 0:00:39]}  Bxe8 {[%clk 0:01:23]} 27. Nxe8 {[%clk 0:00:40]}  Ne7 {[%clk 0:01:20]} 28. Be4 {[%clk 0:00:35]}  Qe6 {[%clk 0:01:03]} 29. Nxg7 {[%clk 0:00:34]}  Kxg7 {[%clk 0:01:03]} 30. Be3 {[%clk 0:00:34]}  h5 {[%clk 0:01:00]} 31. Bxc5 {[%clk 0:00:33]}  Nf5 {[%clk 0:01:00]} 32. Kg2 {[%clk 0:00:17]}  h4 {[%clk 0:01:00]} 33. Ne3 {[%clk 0:00:13]}  Qc8 {[%clk 0:00:45]} 34. b4 {[%clk 0:00:12]}  hxg3 {[%clk 0:00:40]} 35. fxg3 {[%clk 0:00:13]}  Nh6 {[%clk 0:00:40]} 36. Rf3 {[%clk 0:00:10]}  Nf7 {[%clk 0:00:40]} 37. Nd5 {[%clk 0:00:10]}  Ng5 {[%clk 0:00:40]} 38. Rf2 {[%clk 0:00:10]}  Qg4 {[%clk 0:00:41]} 39. Nf6 {[%clk 0:00:09]}  Qh3+ {[%clk 0:00:41]} 40. Kg1 {[%clk 0:00:08]}  Qxg3+ {[%clk 0:00:42]} 41. Rg2 {[%clk 0:00:08]}  Qe1+ {[%clk 0:00:41]} 42. Kh2 {[%clk 0:00:09]}  Kxf6 {[%clk 0:00:24]} 43. Bf2 {[%clk 0:00:07]}  Qd1 {[%clk 0:00:23]} 44. Bh4 {[%clk 0:00:04]}  Qh5 {[%clk 0:00:23]} 45. Kg3 {[%clk 0:00:04]}  Kg7 {[%clk 0:00:19]} 46. Rh2 {[%clk 0:00:02]}  Nxe4+ {[%clk 0:00:19]} 47. dxe4 {[%clk 0:00:02]}  Qd1 {[%clk 0:00:20]} 48. Bg5 {[%clk 0:00:02]}  Qd3+ {[%clk 0:00:19]} 49. Kh4 {[%clk 0:00:02]}  Qxe4+ {[%clk 0:00:19]} 50. Kg3 {[%clk 0:00:01]}  Qd3+ {[%clk 0:00:19]} 51. Kh4 {[%clk 0:00:02]}  Qxc3 {[%clk 0:00:19]} 52. Rf2 {[%clk 0:00:02]}  Qd4+ {[%clk 0:00:19]} 53. Kg3 {[%clk 0:00:02]}  Qd3+ {[%clk 0:00:19]} 54. Rf3 {[%clk 0:00:03]}  Qb5 {[%clk 0:00:13]} 55. Bf6+ {[%clk 0:00:03]}  Kh6 {[%clk 0:00:13]} 56. Be7 {[%clk 0:00:03]}  Qd7 {[%clk 0:00:11]} 57. Bc5 {[%clk 0:00:03]}  e4 {[%clk 0:00:11]} 58. Rf4 {[%clk 0:00:03]}  Qd5 {[%clk 0:00:11]} 59. Kf2 {[%clk 0:00:03]}  g5 {[%clk 0:00:11]} 60. Rf6+ {[%clk 0:00:02]}  Kh5 {[%clk 0:00:11]} 61. Ke3 {[%clk 0:00:02]}  Qd3+ {[%clk 0:00:11]} 62. Kf2 {[%clk 0:00:02]}  Kg4 {[%clk 0:00:11]} 63. Re6 {[%clk 0:00:02]}  Qd2+ {[%clk 0:00:11]} 64. Kf1 {[%clk 0:00:02]}  Kg3 {[%clk 0:00:10]} 65. Rxe4 {[%clk 0:00:02]}  Qg2+ {[%clk 0:00:09]} 66. Ke1 {[%clk 0:00:01]}  Qxe4+ {[%clk 0:00:10]} 67. Kd2 {[%clk 0:00:02]}  Qc6 {[%clk 0:00:09]} 0-1


[Site "https://www.chess.com"]

[Event "Titled Tuesday Blitz April 18 Late 2023"]
[White "Sanchez Alvares, Kelvin Antonio"]
[Black "Mekhitarian, Krikor Sevag"]
[WhiteFideId "3906680"]
[BlackFideId "2107660"]
[WhiteElo "2217"]
[BlackElo "2604"]
[Result "0-1"]
[Round "08"]
[TimeControl "180+2"]
[Date "2023.04.18"]
[WhiteClock "0:00:08"]
[BlackClock "0:00:45"]

1. e4 {[%clk 0:02:59]}  c5 {[%clk 0:02:56]} 2. Nf3 {[%clk 0:02:57]}  e6 {[%clk 0:02:57]} 3. d4 {[%clk 0:02:57]}  cxd4 {[%clk 0:02:58]} 4. Nxd4 {[%clk 0:02:57]}  Bc5 {[%clk 0:02:58]} 5. Nb3 {[%clk 0:02:57]}  Bb6 {[%clk 0:02:58]} 6. Nc3 {[%clk 0:02:57]}  Ne7 {[%clk 0:02:58]} 7. Qg4 {[%clk 0:02:55]}  O-O {[%clk 0:02:57]} 8. Bg5 {[%clk 0:02:55]}  f6 {[%clk 0:02:54]} 9. Bh4 {[%clk 0:02:51]}  Nbc6 {[%clk 0:02:54]} 10. O-O-O {[%clk 0:02:51]}  a5 {[%clk 0:02:45]} 11. Bb5 {[%clk 0:02:49]}  Qe8 {[%clk 0:02:29]} 12. Bg3 {[%clk 0:02:45]}  f5 {[%clk 0:02:28]} 13. exf5 {[%clk 0:02:44]}  Nxf5 {[%clk 0:02:29]} 14. Na4 {[%clk 0:02:13]}  Bd8 {[%clk 0:02:20]} 15. Qe2 {[%clk 0:01:53]}  d5 {[%clk 0:02:17]} 16. Be5 {[%clk 0:01:47]}  Qg6 {[%clk 0:02:13]} 17. g4 {[%clk 0:01:41]}  Nxe5 {[%clk 0:02:07]} 18. Qxe5 {[%clk 0:01:41]}  Nh4 {[%clk 0:02:05]} 19. f4 {[%clk 0:01:27]}  Rxf4 {[%clk 0:02:02]} 20. Nb6 {[%clk 0:01:06]}  Rf2 {[%clk 0:01:02]} 21. Bd3 {[%clk 0:01:04]}  Qh6+ {[%clk 0:01:02]} 22. g5 {[%clk 0:00:58]}  Qxg5+ {[%clk 0:01:02]} 23. Qxg5 {[%clk 0:00:57]}  Bxg5+ {[%clk 0:01:03]} 24. Kb1 {[%clk 0:00:57]}  Rb8 {[%clk 0:01:03]} 25. Rhe1 {[%clk 0:00:19]}  Bd8 {[%clk 0:01:01]} 26. Nxc8 {[%clk 0:00:18]}  Rxc8 {[%clk 0:01:02]} 27. Rxe6 {[%clk 0:00:19]}  a4 {[%clk 0:01:00]} 28. Nd4 {[%clk 0:00:18]}  Bf6 {[%clk 0:00:56]} 29. Nb5 {[%clk 0:00:15]}  Nf3 {[%clk 0:00:57]} 30. Nd6 {[%clk 0:00:12]}  Rd8 {[%clk 0:00:48]} 31. Nxb7 {[%clk 0:00:12]}  Rb8 {[%clk 0:00:49]} 32. Ba6 {[%clk 0:00:10]}  a3 {[%clk 0:00:46]} 33. b3 {[%clk 0:00:09]}  Nd2+ {[%clk 0:00:45]} 34. Kc1 {[%clk 0:00:08]}  Bb2# {[%clk 0:00:45]} 0-1


[Site "https://www.chess.com"]

[Event "Titled Tuesday Blitz April 18 Late 2023"]
[White "Yuan, Qingyu"]
[Black "Karas, Marek"]
[WhiteFideId "8609772"]
[BlackFideId "14928558"]
[WhiteElo "2359"]
[BlackElo "2233"]
[Result "1-0"]
[Round "08"]
[TimeControl "180+2"]
[Date "2023.04.18"]
[WhiteClock "0:00:04"]
[BlackClock "0:00:02"]

1. e4 {[%clk 0:03:00]}  e6 {[%clk 0:03:00]} 2. d4 {[%clk 0:03:00]}  d5 {[%clk 0:02:58]} 3. Nd2 {[%clk 0:03:01]}  a6 {[%clk 0:02:57]} 4. Ngf3 {[%clk 0:03:00]}  c5 {[%clk 0:02:58]} 5. dxc5 {[%clk 0:02:58]}  Bxc5 {[%clk 0:02:57]} 6. Bd3 {[%clk 0:02:58]}  Ne7 {[%clk 0:02:57]} 7. O-O {[%clk 0:02:57]}  Nbc6 {[%clk 0:02:56]} 8. c3 {[%clk 0:02:54]}  O-O {[%clk 0:02:55]} 9. Qe2 {[%clk 0:02:51]}  Ng6 {[%clk 0:02:55]} 10. Nb3 {[%clk 0:02:47]}  Bb6 {[%clk 0:02:55]} 11. Bg5 {[%clk 0:02:23]}  Qc7 {[%clk 0:02:49]} 12. Rad1 {[%clk 0:02:12]}  Nf4 {[%clk 0:02:44]} 13. Bxf4 {[%clk 0:02:11]}  Qxf4 {[%clk 0:02:45]} 14. exd5 {[%clk 0:02:03]}  exd5 {[%clk 0:02:46]} 15. Nfd4 {[%clk 0:02:01]}  Bg4 {[%clk 0:02:36]} 16. f3 {[%clk 0:02:01]}  Rfe8 {[%clk 0:02:23]} 17. Qd2 {[%clk 0:01:49]}  Qxd2 {[%clk 0:02:17]} 18. Rxd2 {[%clk 0:01:47]}  Bd7 {[%clk 0:02:14]} 19. Bc2 {[%clk 0:01:41]}  Ne5 {[%clk 0:02:11]} 20. Bb1 {[%clk 0:01:01]}  Nc4 {[%clk 0:02:08]} 21. Rdf2 {[%clk 0:00:59]}  a5 {[%clk 0:02:05]} 22. Bd3 {[%clk 0:00:56]}  a4 {[%clk 0:01:55]} 23. Bxc4 {[%clk 0:00:51]}  dxc4 {[%clk 0:01:55]} 24. Nd2 {[%clk 0:00:51]}  Bxd4 {[%clk 0:01:41]} 25. cxd4 {[%clk 0:00:52]}  b5 {[%clk 0:01:32]} 26. a3 {[%clk 0:00:41]}  Re3 {[%clk 0:01:31]} 27. Ne4 {[%clk 0:00:35]}  Bc6 {[%clk 0:01:10]} 28. Nc3 {[%clk 0:00:35]}  Rd3 {[%clk 0:01:02]} 29. Rd1 {[%clk 0:00:30]}  Rd8 {[%clk 0:00:56]} 30. Rfd2 {[%clk 0:00:19]}  R8xd4 {[%clk 0:00:55]} 31. Rxd3 {[%clk 0:00:19]}  cxd3 {[%clk 0:00:53]} 32. Kf2 {[%clk 0:00:19]}  b4 {[%clk 0:00:52]} 33. axb4 {[%clk 0:00:07]}  Rxb4 {[%clk 0:00:53]} 34. Rd2 {[%clk 0:00:06]}  Rb3 {[%clk 0:00:38]} 35. Ke3 {[%clk 0:00:06]}  g6 {[%clk 0:00:33]} 36. Kxd3 {[%clk 0:00:06]}  a3 {[%clk 0:00:32]} 37. bxa3 {[%clk 0:00:06]}  Rxa3 {[%clk 0:00:33]} 38. Kc2 {[%clk 0:00:06]}  Kg7 {[%clk 0:00:32]} 39. Kb2 {[%clk 0:00:02]}  Ra7 {[%clk 0:00:31]} 40. Ne2 {[%clk 0:00:03]}  h5 {[%clk 0:00:29]} 41. Nd4 {[%clk 0:00:03]}  Ba8 {[%clk 0:00:27]} 42. h4 {[%clk 0:00:03]}  Ra4 {[%clk 0:00:27]} 43. Kc3 {[%clk 0:00:03]}  Ra3+ {[%clk 0:00:26]} 44. Kc4 {[%clk 0:00:03]}  Ra5 {[%clk 0:00:23]} 45. Kd3 {[%clk 0:00:03]}  Bd5 {[%clk 0:00:23]} 46. Ke3 {[%clk 0:00:04]}  Ra4 {[%clk 0:00:21]} 47. Kf2 {[%clk 0:00:04]}  Ba8 {[%clk 0:00:16]} 48. Kg3 {[%clk 0:00:04]}  Kf6 {[%clk 0:00:17]} 49. Ne2 {[%clk 0:00:05]}  Kg7 {[%clk 0:00:17]} 50. Nf4 {[%clk 0:00:05]}  Kf6 {[%clk 0:00:17]} 51. Re2 {[%clk 0:00:05]}  Kg7 {[%clk 0:00:17]} 52. Re7 {[%clk 0:00:06]}  Kf6 {[%clk 0:00:16]} 53. Rc7 {[%clk 0:00:06]}  Kg7 {[%clk 0:00:15]} 54. Nd3 {[%clk 0:00:06]}  Kf6 {[%clk 0:00:14]} 55. Nc5 {[%clk 0:00:07]}  Ra3 {[%clk 0:00:14]} 56. Nd7+ {[%clk 0:00:07]}  Kg7 {[%clk 0:00:12]} 57. Ne5 {[%clk 0:00:07]}  Bd5 {[%clk 0:00:13]} 58. Rd7 {[%clk 0:00:06]}  Be6 {[%clk 0:00:13]} 59. Rb7 {[%clk 0:00:06]}  Kf6 {[%clk 0:00:13]} 60. Nc6 {[%clk 0:00:02]}  Rc3 {[%clk 0:00:12]} 61. Rb6 {[%clk 0:00:02]}  Kg7 {[%clk 0:00:11]} 62. Nd4 {[%clk 0:00:02]}  Bd5 {[%clk 0:00:09]} 63. Rd6 {[%clk 0:00:03]}  Ba2 {[%clk 0:00:08]} 64. Rd7 {[%clk 0:00:03]}  Kf6 {[%clk 0:00:07]} 65. Ra7 {[%clk 0:00:03]}  Be6 {[%clk 0:00:07]} 66. Ra6 {[%clk 0:00:04]}  Re3 {[%clk 0:00:07]} 67. Nc2 {[%clk 0:00:04]}  Re2 {[%clk 0:00:07]} 68. Nd4 {[%clk 0:00:04]}  Re3 {[%clk 0:00:07]} 69. Nb5 {[%clk 0:00:04]}  Re5 {[%clk 0:00:06]} 70. Nd6 {[%clk 0:00:04]}  Kg7 {[%clk 0:00:06]} 71. Ne4 {[%clk 0:00:04]}  Rf5 {[%clk 0:00:05]} 72. Ra7 {[%clk 0:00:04]}  Re5 {[%clk 0:00:05]} 73. Ng5 {[%clk 0:00:04]}  Kf6 {[%clk 0:00:05]} 74. Kf4 {[%clk 0:00:04]}  Rf5+ {[%clk 0:00:05]} 75. Ke4 {[%clk 0:00:04]}  Re5+ {[%clk 0:00:06]} 76. Kf4 {[%clk 0:00:04]}  Rf5+ {[%clk 0:00:07]} 77. Kg3 {[%clk 0:00:05]}  Re5 {[%clk 0:00:07]} 78. Ra8 {[%clk 0:00:04]}  Kg7 {[%clk 0:00:06]} 79. Re8 {[%clk 0:00:04]}  Re2 {[%clk 0:00:04]} 80. Ne4 {[%clk 0:00:03]}  Bd7 {[%clk 0:00:02]} 81. Re7 {[%clk 0:00:03]}  Be6 {[%clk 0:00:02]} 82. Rc7 {[%clk 0:00:03]}  Re3 {[%clk 0:00:02]} 83. Nc5 {[%clk 0:00:03]}  Re1 {[%clk 0:00:02]} 84. Kf2 {[%clk 0:00:04]}  Re5 {[%clk 0:00:02]} 85. f4 {[%clk 0:00:04]} 1-0


[Site "https://www.chess.com"]

[Event "Titled Tuesday Blitz April 18 Late 2023"]
[White "Weetik, Vjacheslav"]
[Black "Sonnenschein, Philipp"]
[WhiteFideId "4153472"]
[BlackFideId "16250877"]
[WhiteElo "2469"]
[BlackElo "2224"]
[Result "1-0"]
[Round "08"]
[TimeControl "180+2"]
[Date "2023.04.18"]
[WhiteClock "0:00:30"]
[BlackClock "0:00:43"]

1. d4 {[%clk 0:02:59]}  Nf6 {[%clk 0:02:59]} 2. Bf4 {[%clk 0:02:59]}  g6 {[%clk 0:03:00]} 3. Nf3 {[%clk 0:02:59]}  Nh5 {[%clk 0:02:58]} 4. Bc1 {[%clk 0:02:57]}  Bg7 {[%clk 0:02:58]} 5. e4 {[%clk 0:02:53]}  O-O {[%clk 0:02:55]} 6. Be2 {[%clk 0:02:45]}  d6 {[%clk 0:02:50]} 7. O-O {[%clk 0:02:39]}  f5 {[%clk 0:02:46]} 8. Nc3 {[%clk 0:02:33]}  fxe4 {[%clk 0:02:43]} 9. Nxe4 {[%clk 0:02:32]}  Nf4 {[%clk 0:02:32]} 10. Bxf4 {[%clk 0:02:21]}  Rxf4 {[%clk 0:02:33]} 11. Ng3 {[%clk 0:02:14]}  Nc6 {[%clk 0:02:28]} 12. c3 {[%clk 0:02:14]}  e5 {[%clk 0:02:09]} 13. dxe5 {[%clk 0:01:45]}  Nxe5 {[%clk 0:02:09]} 14. Nxe5 {[%clk 0:01:40]}  Bxe5 {[%clk 0:02:09]} 15. Qd5+ {[%clk 0:01:26]}  Kh8 {[%clk 0:02:02]} 16. Rad1 {[%clk 0:01:27]}  Qf6 {[%clk 0:01:48]} 17. Ne4 {[%clk 0:01:10]}  Qe7 {[%clk 0:01:39]} 18. Bf3 {[%clk 0:01:01]}  c6 {[%clk 0:01:29]} 19. Qd2 {[%clk 0:00:57]}  d5 {[%clk 0:01:24]} 20. Ng3 {[%clk 0:00:56]}  Qh4 {[%clk 0:01:16]} 21. Rfe1 {[%clk 0:00:56]}  Bf6 {[%clk 0:00:55]} 22. Re8+ {[%clk 0:00:53]}  Kg7 {[%clk 0:00:55]} 23. Rde1 {[%clk 0:00:50]}  Rf5 {[%clk 0:00:46]} 24. Nxf5+ {[%clk 0:00:49]}  gxf5 {[%clk 0:00:45]} 25. g3 {[%clk 0:00:33]}  Qh3 {[%clk 0:00:43]} 26. Qf4 {[%clk 0:00:30]} 1-0


[Site "https://www.chess.com"]

[Event "Titled Tuesday Blitz April 18 Late 2023"]
[White "Martinez Ramirez, Lennis"]
[Black "Petrovic, Aleksa"]
[WhiteFideId "3509079"]
[BlackFideId "967629"]
[WhiteElo "2410"]
[BlackElo "2309"]
[Result "1/2-1/2"]
[Round "08"]
[TimeControl "180+2"]
[Date "2023.04.18"]
[WhiteClock "0:01:32"]
[BlackClock "0:00:04"]

1. c4 {[%clk 0:03:00]}  e6 {[%clk 0:02:59]} 2. Nf3 {[%clk 0:02:59]}  Nf6 {[%clk 0:02:57]} 3. d4 {[%clk 0:02:59]}  b6 {[%clk 0:02:56]} 4. g3 {[%clk 0:02:58]}  Ba6 {[%clk 0:02:56]} 5. Nbd2 {[%clk 0:02:58]}  d5 {[%clk 0:02:55]} 6. Bg2 {[%clk 0:02:58]}  Be7 {[%clk 0:02:51]} 7. O-O {[%clk 0:02:58]}  O-O {[%clk 0:02:51]} 8. Qc2 {[%clk 0:02:58]}  Nbd7 {[%clk 0:02:50]} 9. e4 {[%clk 0:02:57]}  Nxe4 {[%clk 0:02:45]} 10. Nxe4 {[%clk 0:02:57]}  dxe4 {[%clk 0:02:46]} 11. Nd2 {[%clk 0:02:55]}  Nf6 {[%clk 0:02:17]} 12. b3 {[%clk 0:02:33]}  Qxd4 {[%clk 0:02:03]} 13. Bb2 {[%clk 0:02:33]}  Qc5 {[%clk 0:00:25]} 14. Nxe4 {[%clk 0:02:32]}  Nxe4 {[%clk 0:00:23]} 15. Bxe4 {[%clk 0:02:33]}  Rad8 {[%clk 0:00:22]} 16. Bxh7+ {[%clk 0:02:33]}  Kh8 {[%clk 0:00:22]} 17. Be4 {[%clk 0:02:34]}  Bf6 {[%clk 0:00:20]} 18. Bxf6 {[%clk 0:02:33]}  gxf6 {[%clk 0:00:21]} 19. Rad1 {[%clk 0:02:32]}  Qg5 {[%clk 0:00:17]} 20. f4 {[%clk 0:02:30]}  Qc5+ {[%clk 0:00:17]} 21. Kg2 {[%clk 0:02:30]}  f5 {[%clk 0:00:17]} 22. Qc3+ {[%clk 0:02:28]}  Kh7 {[%clk 0:00:17]} 23. Bf3 {[%clk 0:02:13]}  b5 {[%clk 0:00:10]} 24. Qf6 {[%clk 0:02:12]}  Rxd1 {[%clk 0:00:09]} 25. Rxd1 {[%clk 0:02:12]}  bxc4 {[%clk 0:00:09]} 26. Qh4+ {[%clk 0:02:12]}  Kg7 {[%clk 0:00:09]} 27. Qg5+ {[%clk 0:02:12]}  Kh7 {[%clk 0:00:09]} 28. Rd7 {[%clk 0:02:04]}  c3 {[%clk 0:00:06]} 29. Bh5 {[%clk 0:02:04]}  Qc6+ {[%clk 0:00:04]} 30. Bf3 {[%clk 0:01:38]}  Qxd7 {[%clk 0:00:04]} 31. Qh5+ {[%clk 0:01:32]}  Kg7 {[%clk 0:00:04]} 32. Qg5+ {[%clk 0:01:32]}  Kh7 {[%clk 0:00:05]} 33. Qh4+ {[%clk 0:01:33]}  Kg7 {[%clk 0:00:04]} 34. Qg5+ {[%clk 0:01:32]}  Kh7 {[%clk 0:00:04]} 1/2-1/2


[Site "https://www.chess.com"]